bitfinex/quotes_BTCUSD_20230110
["timestamp","ask_amount","ask_price","bid_price","bid_amount"]
[1673326971773,0.17390596,17225.0,17224.0,0.79360144]
[1673326975253,1.46770229,17226.0,17224.0,0.79360144]
[1673326976030,1.11986758,17226.0,17224.0,0.79360144]
[1673326976237,1.11986758,17226.0,17224.0,0.69660144]
[1673326976529,1.11986758,17226.0,17224.0,0.79360144]
[1673326977566,1.11986758,17226.0,17225.0,0.46092912]
[1673326979107,1.11986758,17226.0,17225.0,0.48592912]
[1673326981869,1.46770229,17226.0,17225.0,0.48592912]
[1673326982126,1.29379633,17226.0,17225.0,0.48592912]
[1673326982383,1.46772098,17226.0,17225.0,0.48592912]
[1673326982626,1.11988627,17226.0,17225.0,0.48592912]
[1673326984113,1.29379633,17226.0,17225.0,0.48592912]
[1673326984381,1.11991259,17226.0,17225.0,0.48592912]
[1673326985929,1.4677473,17226.0,17225.0,0.48592912]
[1673326986182,1.29379633,17226.0,17225.0,0.48592912]
[1673326987718,1.29379633,17226.0,17225.0,0.48601765]
[1673326988222,1.29379633,17226.0,17225.0,0.48592912]
[1673326988837,1.29379633,17226.0,17225.0,0.48601765]
[1673326990030,1.69460536,17226.0,17225.0,0.48592912]
[1673326990275,1.34677065,17226.0,17225.0,0.48769971]
[1673326990487,1.34677065,17226.0,17225.0,0.48592912]
[1673326990967,1.03366102,17226.0,17225.0,0.48592912]
[1673326991479,1.03366102,17226.0,17225.0,0.48769971]
[1673326991747,0.63319513,17226.0,17225.0,0.48769971]
[1673326992005,0.45904635,17226.0,17225.0,0.48769971]
[1673326993547,0.19784114,17226.0,17225.0,0.48769971]
[1673326993804,0.45904635,17226.0,17225.0,0.48769971]
[1673326996134,0.45904635,17226.0,17225.0,0.48592912]
[1673326997655,0.45904635,17226.0,17225.0,0.48602822]
[1673326997903,0.45904635,17226.0,17225.0,0.48592912]
[1673326998901,0.45904635,17226.0,17225.0,0.48602822]
[1673326999915,0.45898302,17226.0,17225.0,0.48602822]
[1673327001427,0.45898302,17226.0,17225.0,0.48592912]
[1673327002463,0.63319513,17226.0,17225.0,0.48592912]
[1673327005048,0.63319513,17226.0,17225.0,0.4861076]
[1673327005299,0.63319513,17226.0,17225.0,0.48592912]
[1673327006269,0.63319513,17226.0,17225.0,0.4861076]
[1673327006505,0.63319513,17226.0,17225.0,0.48592912]
[1673327007775,0.63319513,17226.0,17225.0,0.4861076]
[1673327008564,0.63319513,17226.0,17225.0,0.48592912]
[1673327009029,0.63319513,17226.0,17225.0,0.4861076]
[1673327009779,0.63319513,17226.0,17225.0,0.48592912]
[1673327012924,0.80678869,17226.0,17225.0,0.48592912]
[1673327013399,1.04897144,17226.0,17225.0,0.48592912]
[1673327013661,0.80678869,17226.0,17225.0,0.48592912]
[1673327014150,0.70069758,17226.0,17225.0,0.025]
[1673327015368,1.40792579,17226.0,17225.0,0.025]
[1673327016340,0.97312702,17226.0,17225.0,0.025]
[1673327018068,1.40838521,17226.0,17225.0,0.025]
[1673327019051,1.40838521,17226.0,17225.0,0.02661159]
[1673327019263,1.40838521,17226.0,17225.0,0.025]
[1673327022337,1.40831235,17226.0,17225.0,0.225]
[1673327023819,1.20831235,17226.0,17225.0,0.225]
[1673327026672,0.77312702,17226.0,17225.0,0.225]
[1673327027234,1.2082697,17226.0,17225.0,0.225]
[1673327027738,1.2082697,17226.0,17225.0,0.22661159]
[1673327027982,1.2082697,17226.0,17225.0,0.225]
[1673327028966,1.13506802,17226.0,17225.0,0.225]
[1673327029217,0.87048802,17226.0,17225.0,0.225]
[1673327029486,1.20821776,17226.0,17225.0,0.225]
[1673327029743,1.20821776,17226.0,17225.0,0.22661159]
[1673327030022,1.20821776,17226.0,17225.0,0.225]
[1673327030247,1.5562643,17226.0,17225.0,0.225]
[1673327030546,1.55626397,17226.0,17225.0,0.225]
[1673327030818,1.5562633,17226.0,17225.0,0.225]
[1673327031091,1.55626665,17226.0,17225.0,0.225]
[1673327032605,1.20821776,17226.0,17225.0,0.225]
[1673327032853,1.55625944,17226.0,17225.0,0.225]
[1673327034124,1.55625944,17226.0,17225.0,0.22661159]
[1673327034375,1.55625944,17226.0,17225.0,0.225]
[1673327034877,1.20821776,17226.0,17225.0,0.25869212]
[1673327035898,0.77312702,17226.0,17225.0,0.25869212]
[1673327036659,1.20825287,17226.0,17225.0,0.25869212]
[1673327036948,0.77312702,17226.0,17225.0,0.25869212]
[1673327037241,1.13506802,17226.0,17225.0,0.25869212]
[1673327038286,0.77312702,17226.0,17225.0,0.25869212]
[1673327039866,0.77312702,17226.0,17225.0,0.23369212]
[1673327040056,0.78212702,17226.0,17225.0,0.23369212]
[1673327040299,1.14406802,17226.0,17225.0,0.23369212]
[1673327041575,1.99331795,17226.0,17225.0,0.23369212]
[1673327041816,1.66559167,17226.0,17225.0,0.23369212]
[1673327042336,1.99331761,17226.0,17225.0,0.23369212]
[1673327042820,1.6233894,17226.0,17225.0,0.23369212]
[1673327043081,2.17798066,17226.0,17225.0,0.23369212]
[1673327043356,1.9233894,17226.0,17225.0,0.23369212]
[1673327043614,1.40186575,17226.0,17225.0,0.18694101]
[1673327043868,2.08479808,17226.0,17225.0,0.18694101]
[1673327044396,1.78479808,17226.0,17225.0,0.18694101]
[1673327044654,2.08479808,17226.0,17225.0,0.18694101]
[1673327044975,2.30620585,17226.0,17225.0,0.18694101]
[1673327045155,1.97915153,17226.0,17225.0,0.18694101]
[1673327046210,1.45707214,17226.0,17225.0,0.18694101]
[1673327048215,1.11977214,17226.0,17225.0,0.18694101]
[1673327050956,0.75783114,17226.0,17225.0,0.18694101]
[1673327051480,1.11977214,17226.0,17225.0,0.18694101]
[1673327051996,0.75783114,17226.0,17225.0,0.18694101]
[1673327053237,1.19293241,17226.0,17225.0,0.18694101]
[1673327053490,0.75783114,17226.0,17225.0,0.18694101]
[1673327053749,1.19298331,17226.0,17225.0,0.18694101]
[1673327057984,1.54109781,17226.0,17225.0,0.18701824]
[1673327058196,1.38784892,17226.0,17225.0,0.03376935]
[1673327058471,0.78326667,17226.0,17225.0,0.03376935]
[1673327058988,0.78326667,17226.0,17225.0,0.56883588]
[1673327059478,0.60918937,17226.0,17225.0,0.56883588]
[1673327059724,0.60918937,17226.0,17225.0,0.56875865]
[1673327059969,0.60918937,17226.0,17225.0,0.56895123]
[1673327060487,0.60918937,17226.0,17225.0,0.56875865]
[1673327060994,0.60918937,17226.0,17225.0,0.56895123]
[1673327061236,0.60918937,17226.0,17225.0,0.56875865]
[1673327062026,0.60918937,17226.0,17225.0,0.56895123]
[1673327062280,0.60918937,17226.0,17225.0,0.03369212]
[1673327062525,0.78326667,17226.0,17225.0,0.03369212]
[1673327063273,0.43515217,17226.0,17225.0,0.03369212]
[1673327063489,0.78321521,17226.0,17225.0,0.03369212]
[1673327064528,0.78321521,17226.0,17225.0,0.03542564]
[1673327065021,0.78321521,17226.0,17225.0,0.03369212]
[1673327065524,0.43515217,17226.0,17225.0,0.03369212]
[1673327066266,1.51658852,17227.0,17225.0,0.03369212]
[1673327066525,1.84173613,17227.0,17225.0,0.03369212]
[1673327066800,0.361941,17226.0,17225.0,0.03369212]
[1673327067045,0.361941,17226.0,17225.0,0.03542564]
[1673327067293,1.51658852,17227.0,17225.0,0.03369212]
[1673327067542,0.43509262,17226.0,17225.0,0.03369212]
[1673327072221,0.43509262,17226.0,17225.0,0.03542564]
[1673327072437,0.43509262,17226.0,17225.0,0.03369212]
[1673327073171,0.61555893,17226.0,17225.0,0.03369212]
[1673327073431,0.61556877,17226.0,17225.0,0.03369212]
[1673327073669,0.54240731,17226.0,17225.0,0.03369212]
[1673327074621,0.18046631,17226.0,17225.0,0.03369212]
[1673327075116,0.54240731,17226.0,17225.0,0.03369212]
[1673327075941,0.18046631,17226.0,17225.0,0.03542564]
[1673327076194,0.18046631,17226.0,17225.0,0.03369212]
[1673327076703,0.54240731,17226.0,17225.0,0.03369212]
[1673327077411,0.18046631,17226.0,17225.0,0.03542564]
[1673327077738,0.18046631,17226.0,17225.0,0.03369212]
[1673327078217,0.54240731,17226.0,17225.0,0.03369212]
[1673327081488,1.0644867,17226.0,17225.0,0.03369212]
[1673327082215,1.0644867,17226.0,17225.0,0.03357989]
[1673327082708,2.01381144,17226.0,17225.0,0.03357989]
[1673327083203,2.01376517,17226.0,17225.0,0.03357989]
[1673327084717,1.82918578,17226.0,17225.0,0.03357989]
[1673327089362,1.82918578,17226.0,17225.0,0.02856787]
[1673327089626,2.35121902,17226.0,17225.0,0.02856787]
[1673327090937,1.82918578,17226.0,17225.0,0.02856787]
[1673327095968,2.02734195,17226.0,17225.0,0.02856787]
[1673327096218,1.72149694,17226.0,17225.0,0.02856787]
[1673327096463,2.24334018,17226.0,17225.0,0.02856787]
[1673327098430,1.72149694,17226.0,17225.0,0.02856787]
[1673327099429,2.02149694,17226.0,17225.0,0.02856787]
[1673327099676,1.72149694,17226.0,17225.0,0.02856787]
[1673327100896,2.02149694,17226.0,17225.0,0.02856787]
[1673327101143,1.72149694,17226.0,17225.0,0.02856787]
[1673327101895,2.24342205,17226.0,17225.0,0.02540387]
[1673327102637,1.91783439,17226.0,17225.0,0.02540387]
[1673327102884,2.24358074,17226.0,17225.0,0.02540387]
[1673327105427,1.38415563,17226.0,17225.0,0.02540387]
[1673327106917,1.90614099,17226.0,17225.0,0.02540387]
[1673327107443,1.92534758,17226.0,17225.0,0.02540387]
[1673327107932,1.70336222,17226.0,17225.0,0.02540387]
[1673327108445,1.40336222,17226.0,17225.0,0.02540387]
[1673327109223,1.37836222,17226.0,17225.0,0.02187862]
[1673327113756,1.37815037,17226.0,17225.0,0.02187862]
[1673327114235,1.41315037,17226.0,17225.0,0.02687862]
[1673327114488,1.37815037,17226.0,17225.0,0.02187862]
[1673327114714,1.41315037,17226.0,17225.0,0.03187862]
[1673327115747,1.61315037,17226.0,17225.0,0.03187862]
[1673327116012,2.2013532,17226.0,17225.0,0.03187862]
[1673327116272,1.61315037,17226.0,17225.0,0.03187862]
[1673327116544,2.2013532,17226.0,17225.0,0.03187862]
[1673327117062,1.61315037,17226.0,17225.0,0.03187862]
[1673327117303,2.2013532,17226.0,17225.0,0.03187862]
[1673327117818,1.9013532,17226.0,17225.0,0.03187862]
[1673327118544,1.31315037,17226.0,17225.0,0.03187862]
[1673327119087,1.61315037,17226.0,17225.0,0.03187862]
[1673327119579,2.2013532,17226.0,17225.0,0.03187862]
[1673327120343,1.5758187,17226.0,17225.0,0.03187862]
[1673327120598,1.5408187,17226.0,17225.0,0.02187862]
[1673327120845,1.99960261,17226.0,17225.0,0.02387862]
[1673327121095,1.99961143,17226.0,17225.0,0.02387862]
[1673327121354,2.29961143,17226.0,17225.0,0.02387862]
[1673327125759,1.99961143,17226.0,17225.0,0.02387862]
[1673327126223,1.6758187,17226.0,17225.0,0.02387862]
[1673327129295,1.6758187,17226.0,17225.0,0.02137845]
[1673327129800,1.99994693,17226.0,17225.0,0.02137845]
[1673327130052,1.6758187,17226.0,17225.0,0.02137845]
[1673327131067,1.99990569,17226.0,17225.0,0.02137845]
[1673327131323,1.99994704,17226.0,17225.0,0.02137845]
[1673327131592,1.6758187,17226.0,17225.0,0.02137845]
[1673327131846,1.99998828,17226.0,17225.0,0.02137845]
[1673327132109,1.6758187,17226.0,17225.0,0.02137845]
[1673327132909,1.5408187,17226.0,17224.0,0.08910096]
[1673327133145,0.35282731,17225.0,17224.0,0.08910096]
[1673327133402,0.77804869,17225.0,17224.0,0.09099566]
[1673327133646,0.77804869,17225.0,17224.0,0.08910096]
[1673327134144,1.41288651,17225.0,17224.0,0.08910096]
[1673327134983,1.54688651,17225.0,17224.0,0.08910096]
[1673327135463,1.90882751,17225.0,17224.0,0.08910096]
[1673327136207,1.38624513,17225.0,17224.0,0.08910096]
[1673327136970,1.90883048,17225.0,17224.0,0.08910096]
[1673327137714,1.54688948,17225.0,17224.0,0.08910096]
[1673327138964,1.90883048,17225.0,17224.0,0.08910096]
[1673327141510,1.54688948,17225.0,17224.0,0.08910096]
[1673327141752,1.41288948,17225.0,17224.0,0.08910096]
[1673327142492,1.77483048,17225.0,17224.0,0.08910096]
[1673327142755,1.90983048,17225.0,17224.0,0.08910096]
[1673327143019,1.77483048,17225.0,17224.0,0.08910096]
[1673327143268,1.54688948,17225.0,17224.0,0.08910096]
[1673327143521,1.90883048,17225.0,17224.0,0.08910096]
[1673327144291,1.38624513,17225.0,17224.0,0.08910096]
[1673327144776,1.5469077,17225.0,17224.0,0.08910096]
[1673327144993,1.9088487,17225.0,17224.0,0.08910096]
[1673327145499,1.90884867,17225.0,17224.0,0.08910096]
[1673327145988,1.38624513,17225.0,17224.0,0.08910096]
[1673327149411,1.38624513,17225.0,17224.0,0.07976942]
[1673327152113,1.71020252,17225.0,17224.0,0.07976942]
[1673327152338,1.38624513,17225.0,17224.0,0.07976942]
[1673327152731,1.02430413,17225.0,17224.0,0.07976942]
[1673327153667,1.38624513,17225.0,17224.0,0.07976942]
[1673327154101,1.54685962,17225.0,17224.0,0.07976942]
[1673327154323,1.02430413,17225.0,17224.0,0.07976942]
[1673327155352,1.38624513,17225.0,17224.0,0.07976942]
[1673327155596,1.02430413,17225.0,17224.0,0.07976942]
[1673327157192,1.38624513,17225.0,17224.0,0.07976942]
[1673327158471,1.02430413,17225.0,17224.0,0.07976942]
[1673327159193,1.38624513,17225.0,17224.0,0.07976942]
[1673327160218,1.25224513,17225.0,17224.0,0.07976942]
[1673327160460,1.02530413,17225.0,17224.0,0.07976942]
[1673327161448,1.38724513,17225.0,17224.0,0.07976942]
[1673327162303,1.02530413,17225.0,17224.0,0.07976942]
[1673327163590,1.38724513,17225.0,17224.0,0.07976942]
[1673327165275,1.02530413,17225.0,17224.0,0.07976942]
[1673327165792,1.38724513,17225.0,17224.0,0.07976942]
[1673327167275,1.02530413,17225.0,17224.0,0.07976942]
[1673327167761,1.02360754,17225.0,17224.0,0.07976942]
[1673327168021,1.7094646,17225.0,17224.0,0.07976942]
[1673327168268,2.66310908,17225.0,17224.0,0.07976942]
[1673327168510,2.07490625,17225.0,17224.0,0.07976942]
[1673327169274,2.66284978,17225.0,17224.0,0.07976942]
[1673327169526,2.66284978,17225.0,17224.0,0.07179248]
[1673327170039,2.52784978,17225.0,17224.0,0.07179248]
[1673327170292,2.66384978,17225.0,17224.0,0.07179248]
[1673327170548,2.13301361,17225.0,17224.0,0.07179248]
[1673327170795,1.54507008,17225.0,17224.0,0.07179248]
[1673327171288,2.13270078,17225.0,17224.0,0.07179248]
[1673327171527,1.54507008,17225.0,17224.0,0.0461137]
[1673327173030,2.45397951,17225.0,17224.0,0.0461137]
[1673327173505,2.28487951,17225.0,17224.0,0.0461137]
[1673327173990,1.63932345,17225.0,17224.0,0.0461137]
[1673327174251,1.50332345,17225.0,17224.0,0.0461137]
[1673327174488,2.23123847,17225.0,17224.0,0.0461137]
[1673327174968,1.63932345,17225.0,17224.0,0.0461137]
[1673327175218,1.95865633,17225.0,17224.0,0.0461137]
[1673327176207,1.95854022,17225.0,17224.0,0.0461137]
[1673327176920,1.3710436,17225.0,17224.0,0.0461137]
[1673327177712,1.5386436,17225.0,17224.0,0.0461137]
[1673327179475,2.66762035,17225.0,17224.0,0.0461137]
[1673327179722,1.5386436,17225.0,17224.0,0.0461137]
[1673327181528,1.70930796,17225.0,17224.0,0.0461137]
[1673327181715,1.5386436,17225.0,17224.0,0.0298989]
[1673327181954,2.12585492,17225.0,17224.0,0.0298989]
[1673327182197,1.80651295,17225.0,17224.0,0.0298989]
[1673327182449,2.12588228,17225.0,17224.0,0.0298989]
[1673327185193,1.80651295,17225.0,17224.0,0.0298989]
[1673327185440,2.46200062,17225.0,17224.0,0.0298989]
[1673327185680,1.80651295,17225.0,17224.0,0.0298989]
[1673327186447,2.12585802,17225.0,17224.0,0.0298989]
[1673327188657,1.80651295,17225.0,17224.0,0.0298989]
[1673327189408,2.12155965,17225.0,17224.0,0.02690902]
[1673327189662,1.36675742,17225.0,17224.0,0.02690902]
[1673327190666,1.77322768,17225.0,17224.0,0.02690902]
[1673327191943,1.15818098,17225.0,17224.0,0.02690902]
[1673327192685,1.76780242,17225.0,17224.0,0.02690902]
[1673327193924,1.15818098,17225.0,17224.0,0.02690902]
[1673327194149,1.67181199,17225.0,17224.0,0.02690902]
[1673327199192,1.15818098,17225.0,17224.0,0.02690902]
[1673327199471,1.85732006,17225.0,17224.0,0.02690902]
[1673327200248,2.61372052,17225.0,17224.0,0.02690902]
[1673327201719,2.04538321,17225.0,17224.0,0.02690902]
[1673327202718,2.7433996,17225.0,17224.0,0.02690902]
[1673327202971,2.76106459,17225.0,17224.0,0.02690902]
[1673327209465,2.76106459,17225.0,17224.0,0.02421812]
[1673327209715,2.04538321,17225.0,17224.0,0.02421812]
[1673327209955,2.73894646,17225.0,17224.0,0.02421812]
[1673327210217,2.04538321,17225.0,17224.0,0.02421812]
[1673327210471,2.28631549,17225.0,17224.0,0.02421812]
[1673327210717,2.58631549,17225.0,17224.0,0.02421812]
[1673327211215,2.28631549,17225.0,17224.0,0.02421812]
[1673327214270,2.58631549,17225.0,17224.0,0.02421812]
[1673327215279,2.04538321,17225.0,17224.0,0.02421812]
[1673327215519,2.61738435,17225.0,17224.0,0.02421812]
[1673327215763,2.04538321,17225.0,17224.0,0.02521812]
[1673327216021,1.90938321,17225.0,17224.0,0.02421812]
[1673327216273,2.04438321,17225.0,17224.0,0.02521812]
[1673327216763,2.68015781,17225.0,17224.0,0.02521812]
[1673327217556,2.38015781,17225.0,17224.0,0.02521812]
[1673327218297,2.68015781,17225.0,17224.0,0.02521812]
[1673327218580,2.38015781,17225.0,17224.0,0.02521812]
[1673327218835,2.68015781,17225.0,17224.0,0.02521812]
[1673327219137,2.38015781,17225.0,17224.0,0.02521812]
[1673327221378,2.37774281,17225.0,17224.0,0.02521812]
[1673327225329,2.67774281,17225.0,17224.0,0.02521812]
[1673327225564,2.37774281,17225.0,17224.0,0.02521812]
[1673327226294,2.67774281,17225.0,17224.0,0.02521812]
[1673327226857,2.37774281,17225.0,17224.0,0.02521812]
[1673327228136,2.67774281,17225.0,17224.0,0.02521812]
[1673327228388,1.45476598,17225.0,17224.0,0.02521812]
[1673327229387,1.45476598,17225.0,17224.0,0.02269631]
[1673327230150,2.10408563,17225.0,17224.0,0.02269631]
[1673327230405,1.80408563,17225.0,17224.0,0.02269631]
[1673327230650,2.10408563,17225.0,17224.0,0.02269631]
[1673327230894,2.69204089,17225.0,17224.0,0.02269631]
[1673327231159,2.39204089,17225.0,17224.0,0.02269631]
[1673327233393,2.69204089,17225.0,17224.0,0.02269631]
[1673327233655,2.39204089,17225.0,17224.0,0.02269631]
[1673327234898,2.69204089,17225.0,17224.0,0.02269631]
[1673327235151,2.39204089,17225.0,17224.0,0.02269631]
[1673327236379,2.69204089,17225.0,17224.0,0.02269631]
[1673327238109,2.10408563,17225.0,17224.0,0.02269631]
[1673327238351,1.45476598,17225.0,17224.0,0.02269631]
[1673327239820,1.61704258,17225.0,17224.0,0.02269631]
[1673327240311,2.32340204,17225.0,17224.0,0.02269631]
[1673327240559,1.61704258,17225.0,17224.0,0.02269631]
[1673327240810,1.45476598,17225.0,17224.0,0.02269631]
[1673327241564,2.11427739,17225.0,17224.0,0.01471989]
[1673327241915,2.15758023,17225.0,17224.0,0.01471989]
[1673327242763,1.45476598,17225.0,17224.0,0.01471989]
[1673327244268,1.97597718,17225.0,17224.0,0.01471989]
[1673327244474,1.45476598,17225.0,17224.0,0.01471989]
[1673327245797,2.04884524,17225.0,17224.0,0.01471989]
[1673327246029,1.45476598,17225.0,17224.0,0.01471989]
[1673327246465,2.03679141,17225.0,17224.0,0.01471989]
[1673327246675,1.45476598,17225.0,17224.0,0.01471989]
[1673327246929,2.12872608,17225.0,17224.0,0.01471989]
[1673327247105,1.52282513,17225.0,17224.0,0.01471989]
[1673327248375,1.69202513,17225.0,17224.0,0.01471989]
[1673327248584,1.62396598,17225.0,17224.0,0.01471989]
[1673327249383,1.62396598,17225.0,17224.0,0.01324791]
[1673327251815,1.62396598,17225.0,17224.0,0.00862062]
[1673327254066,2.19883956,17225.0,17224.0,0.00862062]
[1673327255377,1.62396598,17225.0,17224.0,0.00862062]
[1673327255634,2.17442036,17225.0,17224.0,0.00862062]
[1673327256109,1.62396598,17225.0,17224.0,0.00862062]
[1673327257617,2.21853515,17225.0,17224.0,0.00862062]
[1673327257866,2.20860834,17225.0,17224.0,0.00862062]
[1673327258120,1.62396598,17225.0,17224.0,0.00862062]
[1673327258371,2.30418251,17225.0,17224.0,0.00862062]
[1673327258626,1.62396598,17225.0,17224.0,0.00862062]
[1673327259287,2.32841265,17225.0,17224.0,0.00862062]
[1673327259537,1.62396598,17225.0,17224.0,0.00862062]
[1673327260651,2.129184,17225.0,17224.0,0.00862062]
[1673327260868,1.62396598,17225.0,17224.0,0.00862062]
[1673327261655,1.62396598,17225.0,17224.0,0.00562059]
[1673327262665,1.45476598,17225.0,17224.0,0.00562059]
[1673327267874,1.61704258,17225.0,17224.0,0.00562059]
[1673327269629,1.45476598,17225.0,17224.0,0.00505854]
[1673327271648,1.45476598,17225.0,17224.0,0.00330882]
[1673327273189,2.11017943,17225.0,17224.0,0.00330882]
[1673327273462,1.45476598,17225.0,17224.0,0.00330882]
[1673327275869,2.0993601,17225.0,17224.0,0.00330882]
[1673327276352,1.45476598,17225.0,17224.0,0.00330882]
[1673327277349,2.08935288,17225.0,17224.0,0.00330882]
[1673327278087,1.45476598,17225.0,17224.0,0.00330882]
[1673327278335,2.12959746,17225.0,17224.0,0.00330882]
[1673327278590,2.71756692,17225.0,17224.0,0.00330882]
[1673327279081,2.12959746,17225.0,17224.0,0.00330882]
[1673327279320,2.71756682,17225.0,17224.0,0.00330882]
[1673327282252,2.21193534,17225.0,17224.0,0.00330882]
[1673327282740,2.61282691,17225.0,17224.0,0.00230882]
[1673327282986,2.16085755,17225.0,17224.0,0.00230882]
[1673327283237,1.90886835,17225.0,17224.0,0.00230882]
[1673327283472,2.42685064,17225.0,17224.0,0.00230882]
[1673327283934,1.90886835,17225.0,17224.0,0.00230882]
[1673327284180,2.60593649,17225.0,17224.0,0.00230882]
[1673327284413,1.90886835,17225.0,17224.0,0.00230882]
[1673327284908,2.51947373,17225.0,17224.0,0.00230882]
[1673327285155,2.52783037,17225.0,17224.0,0.00230882]
[1673327285933,1.90886835,17225.0,17224.0,0.00230882]
[1673327286216,2.60213188,17225.0,17224.0,0.00230882]
[1673327286454,1.90886835,17225.0,17224.0,0.00230882]
[1673327287450,2.26711371,17225.0,17224.0,0.00230882]
[1673327287959,1.62496598,17225.0,17224.0,0.00230882]
[1673327288501,2.13521976,17225.0,17224.0,0.00230882]
[1673327288750,2.72313403,17225.0,17224.0,0.00230882]
[1673327289498,2.04368025,17225.0,17224.0,0.00207794]
[1673327289987,2.76338978,17225.0,17224.0,0.00207794]
[1673327291025,2.04368025,17225.0,17224.0,0.00207794]
[1673327291509,2.67400941,17225.0,17224.0,0.00207794]
[1673327293358,2.04368025,17225.0,17224.0,0.00207794]
[1673327293608,2.65928121,17225.0,17224.0,0.00207794]
[1673327295573,2.35928121,17225.0,17224.0,0.00207794]
[1673327296080,0.38735472,17225.0,17224.0,0.9964705]
[1673327296336,0.90982144,17225.0,17224.0,1.12073361]
[1673327296607,0.90982144,17225.0,17224.0,0.68111261]
[1673327296861,0.38735472,17225.0,17224.0,1.04305361]
[1673327297112,0.19146631,17225.0,17224.0,1.04305361]
[1673327297368,0.05546631,17225.0,17224.0,1.04305361]
[1673327297636,0.05546631,17225.0,17224.0,0.68411261]
[1673327297920,0.05546631,17225.0,17224.0,0.68111261]
[1673327297921,0.49052139,17225.0,17224.0,0.68111261]
[1673327298187,0.58752139,17225.0,17224.0,0.68411261]
[1673327300443,0.49052139,17225.0,17224.0,0.68111261]
[1673327300687,0.62252139,17225.0,17224.0,0.68111261]
[1673327301232,0.18746631,17225.0,17224.0,0.00207794]
[1673327301761,0.38746631,17225.0,17224.0,0.00207794]
[1673327313494,0.38746631,17225.0,17224.0,0.00199861]
[1673327316526,0.25546631,17225.0,17224.0,0.00199861]
[1673327316746,0.39046631,17225.0,17224.0,0.00199861]
[1673327318660,0.82531052,17225.0,17224.0,0.00199861]
[1673327318832,0.39046631,17225.0,17224.0,0.00199861]
[1673327320636,0.82532508,17225.0,17224.0,0.00199861]
[1673327320867,0.39046631,17225.0,17224.0,0.00199861]
[1673327322560,0.82533166,17225.0,17224.0,0.00199861]
[1673327323554,0.82533116,17225.0,17224.0,0.00199861]
[1673327324322,0.39046631,17225.0,17224.0,0.00199861]
[1673327325571,0.82535857,17225.0,17224.0,0.00199861]
[1673327325817,0.39046631,17225.0,17224.0,0.00199861]
[1673327326066,0.82540832,17225.0,17224.0,0.00199861]
[1673327327835,0.39046631,17225.0,17224.0,0.00199861]
[1673327333743,0.91293303,17225.0,17224.0,0.00199861]
[1673327334478,1.3191965,17225.0,17224.0,0.00199861]
[1673327335203,1.31919634,17225.0,17224.0,0.00199861]
[1673327336262,0.91293303,17225.0,17224.0,0.00199861]
[1673327336761,1.60997368,17225.0,17224.0,0.00199861]
[1673327337030,1.60997368,17225.0,17224.0,0.00189092]
[1673327337591,2.01623699,17225.0,17224.0,0.00189092]
[1673327338303,1.60997368,17225.0,17224.0,0.00189092]
[1673327338777,2.01627838,17225.0,17224.0,0.00189092]
[1673327340540,1.60997368,17225.0,17224.0,0.00189092]
[1673327341569,2.0162368,17225.0,17224.0,0.00189092]
[1673327345793,2.01623667,17225.0,17224.0,0.00189092]
[1673327348017,1.60997368,17225.0,17224.0,0.00189092]
[1673327350866,2.01619586,17225.0,17224.0,0.00189092]
[1673327353258,2.01619569,17225.0,17224.0,0.00189092]
[1673327355056,1.49372897,17225.0,17224.0,0.00189092]
[1673327355560,2.01633198,17225.0,17224.0,0.00189092]
[1673327356685,1.49284328,17225.0,17224.0,0.00189092]
[1673327357526,2.01542808,17225.0,17224.0,0.00189092]
[1673327359205,1.49284328,17225.0,17224.0,0.00189092]
[1673327359464,2.01540913,17225.0,17224.0,0.00189092]
[1673327360050,1.49284328,17225.0,17224.0,0.00189092]
[1673327360763,2.01540328,17225.0,17224.0,0.00189092]
[1673327361034,1.49284328,17225.0,17224.0,0.00189092]
[1673327363230,2.01537761,17225.0,17224.0,0.00189092]
[1673327363458,1.49284328,17225.0,17224.0,0.00189092]
[1673327366682,1.60914272,17225.0,17224.0,0.00189092]
[1673327366962,2.01544677,17225.0,17224.0,0.00189092]
[1673327369856,1.49292532,17225.0,17224.0,0.00189092]
[1673327370599,2.0154925,17225.0,17224.0,0.00189092]
[1673327371051,1.49292532,17225.0,17224.0,0.00189092]
[1673327371880,2.01550994,17225.0,17224.0,0.00189092]
[1673327372580,1.49292511,17225.0,17224.0,0.00189092]
[1673327377421,1.79292511,17225.0,17224.0,0.00189092]
[1673327377641,1.49292511,17225.0,17224.0,0.00189092]
[1673327379227,1.74199557,17225.0,17224.0,0.00170183]
[1673327379459,2.79838599,17225.0,17224.0,0.00170183]
[1673327380215,2.27313657,17225.0,17224.0,0.00170183]
[1673327381395,2.85916143,17225.0,17224.0,0.00170183]
[1673327382720,2.85907792,17225.0,17224.0,0.00170183]
[1673327387387,2.27305306,17225.0,17224.0,0.00170183]
[1673327388115,2.13805306,17225.0,17224.0,0.00170183]
[1673327388368,2.93772096,17225.0,17224.0,0.00170183]
[1673327388685,2.27305306,17225.0,17224.0,0.00170183]
[1673327391616,2.27305306,17225.0,17224.0,0.00113264]
[1673327396132,2.53714837,17225.0,17224.0,0.00113264]
[1673327396659,2.27305306,17225.0,17224.0,0.00113264]
[1673327398457,2.78156147,17225.0,17224.0,0.00113264]
[1673327398710,2.27305306,17225.0,17224.0,0.00113264]
[1673327401713,2.26989606,17225.0,17224.0,0.00113264]
[1673327401963,2.84541905,17225.0,17224.0,0.00113264]
[1673327402470,2.26989606,17225.0,17224.0,0.00113264]
[1673327403469,2.89511776,17225.0,17224.0,0.00113264]
[1673327404217,2.89511776,17225.0,17224.0,0.00075809]
[1673327404479,2.26989606,17225.0,17224.0,0.00075809]
[1673327404723,1.68198179,17225.0,17224.0,0.00075809]
[1673327405709,2.26943189,17225.0,17224.0,0.00075809]
[1673327406279,2.26943189,17225.0,17224.0,0.00068229]
[1673327408314,2.78595487,17225.0,17224.0,0.00068229]
[1673327409358,2.19850477,17225.0,17224.0,0.00068229]
[1673327409887,2.03350477,17225.0,17224.0,0.00068229]
[1673327410140,2.33350477,17225.0,17224.0,0.00068229]
[1673327410464,1.81698179,17225.0,17224.0,0.00068229]
[1673327410645,2.40443189,17225.0,17224.0,0.00068229]
[1673327410924,3.11785882,17225.0,17224.0,0.00068229]
[1673327417325,2.81785882,17225.0,17224.0,0.00068229]
[1673327417570,3.11785882,17225.0,17224.0,0.00068229]
[1673327418380,2.75591782,17225.0,17224.0,0.00068229]
[1673327418667,3.11785882,17225.0,17224.0,0.00068229]
[1673327421764,2.81785882,17225.0,17224.0,0.00068229]
[1673327421997,1.86846772,17225.0,17224.0,0.00068229]
[1673327422631,2.75591782,17225.0,17224.0,0.00068229]
[1673327422878,2.81785882,17225.0,17224.0,0.00068229]
[1673327423924,3.11785882,17225.0,17224.0,0.00068229]
[1673327424185,2.23040872,17225.0,17224.0,0.00068229]
[1673327425049,1.86846772,17225.0,17224.0,0.00068229]
[1673327425295,1.23476704,17225.0,17224.0,0.00068229]
[1673327426004,1.75717321,17225.0,17224.0,0.00068229]
[1673327428299,1.23476704,17225.0,17224.0,0.00068229]
[1673327428561,1.75717321,17225.0,17224.0,0.00068229]
[1673327429058,1.75717321,17225.0,17224.0,0.00059308]
[1673327429307,1.23476704,17225.0,17224.0,0.00059308]